bitfinex/quotes_SOLUSD_20250817
["timestamp","ask_amount","ask_price","bid_price","bid_amount"]
[1755420762254,3.52408524,193.44,193.43,33.65160211]
[1755420762444,0.06,193.44,193.43,26.0]
[1755420762645,0.06,193.44,193.43,33.65160211]
[1755420763046,0.06,193.44,193.43,0.69]
[1755420763243,0.06,193.44,193.43,7.65160211]
[1755420763563,0.06,193.44,193.43,8.34160211]
[1755420763770,0.06,193.44,193.39,26.0]
[1755420763942,0.06,193.44,193.43,7.65160211]
[1755420764142,0.06,193.44,193.43,26.0]
[1755420764342,0.06,193.44,193.43,33.65160211]
[1755420764868,0.06,193.44,193.43,31.23935641]
[1755420765552,0.06,193.44,193.43,37.06918528]
[1755420765755,0.06,193.44,193.43,26.0]
[1755420766366,0.06,193.44,193.43,31.82982887]
[1755420766568,0.06,193.44,193.43,32.34681175]
[1755420766737,0.06,193.44,193.43,37.58616816]
[1755420766935,0.06,193.46,193.43,26.69238373]
[1755420767262,0.06,193.46,193.45,31.23935641]
[1755420767762,0.06,193.46,193.45,26.0]
[1755420767941,0.06,193.46,193.45,31.23935641]
[1755420768576,0.06,193.46,193.42,2.730662]
[1755420768743,0.06,193.46,193.44,5.23935641]
[1755420769061,0.06,193.46,193.43,26.0]
[1755420769261,0.06,193.46,193.44,5.23935641]
[1755420769568,0.06,193.46,193.43,26.0]
[1755420769870,0.06,193.46,193.44,5.23935641]
[1755420770163,0.06,193.46,193.43,26.0]
[1755420770546,0.06,193.46,193.43,5.23935641]
[1755420771052,0.06,193.46,193.4,26.0]
[1755420771251,0.06,193.46,193.4,26.66]
[1755420771657,0.06,193.46,193.44,5.23935641]
[1755420772054,0.06,193.46,193.4,26.66]
[1755420772262,0.06,193.46,193.44,5.23935641]
[1755420772986,0.06,193.46,193.45,5.89935641]
[1755420773266,0.06,193.46,193.45,0.66]
[1755420773477,0.06,193.46,193.45,5.89935641]
[1755420773668,0.06,193.46,193.42,0.66]
[1755420774000,0.06,193.46,193.45,5.23935641]
[1755420774566,0.06,193.46,193.45,31.23935641]
[1755420775449,0.06,193.46,193.45,26.0]
[1755420775652,0.06,193.46,193.4,0.66]
[1755420775862,0.75,193.46,193.43,5.23935641]
[1755420776052,5.91905076,193.46,193.41,26.0]
[1755420776257,0.69,193.45,193.42,31.23935641]
[1755420776458,5.22905076,193.46,193.44,5.23935641]
[1755420776961,5.22905076,193.46,193.43,5.23935641]
[1755420777352,5.22905076,193.46,193.41,26.0]
[1755420777568,5.22905076,193.46,193.42,5.23935641]
[1755420777739,0.06,193.46,193.42,5.23935641]
[1755420777944,0.06,193.46,193.43,5.23935641]
[1755420778141,0.06,193.46,193.42,26.66]
[1755420778375,0.06,193.46,193.43,5.23935641]
[1755420778568,0.06,193.46,193.42,26.66]
[1755420778883,0.06,193.46,193.43,5.23935641]
[1755420779061,0.06,193.46,193.42,26.66]
[1755420779376,0.69,193.45,193.41,31.23935641]
[1755420779674,0.06,193.46,193.41,26.66]
[1755420779864,0.75,193.46,193.41,26.66]
[1755420780047,0.75,193.46,193.41,31.89935641]
[1755420780249,5.29935641,193.46,193.41,26.0]
[1755420780549,0.75,193.46,193.41,31.89935641]
[1755420780750,0.75,193.46,193.41,26.66]
[1755420781166,5.91924155,193.46,193.41,26.66]
[1755420781368,5.23935641,193.42,193.37,0.03]
[1755420781548,0.69,193.45,193.37,0.03]
[1755420781755,5.23935641,193.41,193.37,0.03]
[1755420781958,5.23935641,193.38,193.37,0.03]
[1755420782166,5.23935641,193.39,193.37,0.03]
[1755420782479,5.92935641,193.4,193.37,0.03]
[1755420782777,134.7,193.45,193.37,0.03]
[1755420782778,5.23935641,193.41,193.37,0.03]
[1755420782956,0.69,193.39,193.37,0.03]
[1755420783360,5.17116558,193.38,193.37,0.03]
[1755420784155,5.86116558,193.38,193.37,0.03]
[1755420784482,11.10052199,193.38,193.37,0.03]
[1755420785597,5.86116558,193.38,193.37,0.03]
[1755420785879,5.17116558,193.38,193.37,0.03]
[1755420786385,5.17036347,193.41,193.37,0.03]
[1755420786582,0.69,193.38,193.37,0.03]
[1755420787582,5.86116558,193.38,193.37,0.03]
[1755420790189,5.17116558,193.38,193.37,0.03]
[1755420790389,5.17087705,193.4,193.37,0.03]
[1755420791977,5.17036347,193.41,193.37,0.03]
[1755420792460,5.86036347,193.41,193.37,0.03]
[1755420792783,11.09971988,193.41,193.37,0.03]
[1755420794365,10.40971988,193.41,193.37,0.03]
[1755420794570,5.83064252,193.4,193.37,0.03]
[1755420795462,5.17064252,193.4,193.37,0.03]
[1755420795785,5.17040436,193.41,193.37,0.74]
[1755420795973,5.83040436,193.41,193.37,0.03]
[1755420797568,11.06976077,193.41,193.37,0.03]
[1755420797768,0.66,193.4,193.37,0.03]
[1755420798867,5.83066371,193.4,193.37,0.03]
[1755420799398,5.17066371,193.4,193.38,0.71]
[1755420799691,5.17066371,193.4,193.37,0.03]
[1755420799991,5.83066371,193.4,193.37,0.03]
[1755420800890,5.83066371,193.4,193.37,5.26935641]
[1755420802097,5.83066371,193.4,193.37,0.03]
[1755420803585,0.66,193.39,193.37,0.03]
[1755420804030,8.70600679,193.42,193.38,5.23935641]
[1755420804031,5.83011182,193.42,193.38,5.23935641]
[1755420804304,5.17011182,193.42,193.38,0.71]
[1755420804470,5.83011182,193.42,193.38,5.23935641]
[1755420804802,0.66,193.41,193.38,3.37058124]
[1755420805167,0.66,193.41,193.37,0.03]
[1755420805364,0.66,193.41,193.38,3.37058124]
[1755420805564,0.66,193.41,193.37,0.03]
[1755420805768,0.66,193.41,193.38,3.37058124]
[1755420806597,0.06,193.44,193.4,3.37058124]
[1755420806779,0.06,193.44,193.43,3.37058124]
[1755420807179,0.06,193.44,193.41,0.71]
[1755420807387,0.06,193.44,193.43,3.37058124]
[1755420807772,0.06,193.44,193.43,0.71]
[1755420807975,0.06,193.44,193.43,4.08058124]
[1755420810118,0.06,193.44,193.43,3.37058124]
[1755420810276,0.72,193.44,193.42,3.37058124]
[1755420810980,0.72,193.44,193.39,26.71]
[1755420811185,0.72,193.44,193.42,3.37058124]
[1755420811792,0.06,193.44,193.43,3.37058124]
[1755420812895,0.06,193.44,193.43,4.08058124]
[1755420813925,4.99422328,193.54,193.43,31.87982887]
[1755420814121,0.66,193.54,193.53,3.37058124]
[1755420814295,43.36,193.59,193.53,3.37058124]
[1755420814609,0.66,193.57,193.54,3.37058124]
[1755420814780,0.66,193.57,193.55,3.37058124]
[1755420814978,5.16582291,193.58,193.55,3.37058124]
[1755420815281,0.66,193.57,193.54,3.37058124]
[1755420815501,0.66,193.56,193.52,26.0]
[1755420815810,5.82639431,193.56,193.54,3.37058124]
[1755420816382,0.66,193.63,193.55,4.08058124]
[1755420816588,0.66,193.63,193.5,43.81679586]
[1755420816589,0.66,193.64,193.61,3.37058124]
[1755420816805,0.66,193.64,193.61,5.23068802]
[1755420816994,0.66,193.63,193.6,5.23068802]
[1755420817313,10.39437695,193.66,193.58,5.163689]
[1755420817489,0.66,193.62,193.58,5.163689]
[1755420817822,0.06,193.57,193.56,26.71]
[1755420818114,0.06,193.57,193.56,31.87635668]
[1755420818314,0.06,193.57,193.56,39.619137]
[1755420819034,0.06,193.57,193.56,12.909137]
[1755420819035,0.72,193.57,193.56,12.909137]
[1755420819204,0.72,193.57,193.48,0.71]
[1755420819393,0.72,193.57,193.52,10.39556102]
[1755420819596,5.82635668,193.56,193.52,10.39556102]
[1755420819808,0.66,193.55,193.52,10.39556102]
[1755420819987,0.66,193.55,193.52,5.23068802]
[1755420820187,0.06,193.57,193.54,31.23068802]
[1755420820422,0.06,193.57,193.56,31.23068802]
[1755420820789,0.06,193.57,193.56,31.94068802]
[1755420822507,0.06,193.57,193.56,37.1070447]
[1755420823218,1e-08,193.59,193.56,37.1070447]
[1755420823419,1e-08,193.59,193.58,26.0]
[1755420823590,1e-08,193.59,193.58,36.39651093]
[1755420823989,1e-08,193.59,193.58,37.10651093]
[1755420824194,130.58,193.7,193.58,98.19175623]
[1755420824409,130.58,193.7,193.69,5.23068802]
[1755420824624,129.92,193.7,193.69,5.23068802]
[1755420825002,130.64,193.7,193.69,5.23068802]
[1755420825211,130.64,193.7,193.69,5.08108272]
[1755420825894,129.92,193.7,193.69,5.23068802]
[1755420826491,130.64,193.7,193.66,15.5147]
[1755420826691,0.72,193.69,193.64,5.23068802]
[1755420827121,0.72,193.69,193.61,15.517911]
[1755420827427,135.08267043,193.7,193.68,5.23068802]
[1755420827600,54.16034258,193.7,193.63,42.8]
[1755420827798,54.16034258,193.7,193.69,26.7]
[1755420828014,54.16034258,193.7,193.69,26.0]
[1755420828202,54.16034258,193.7,193.69,41.51069]
[1755420828593,54.88034258,193.7,193.68,5.23068802]
[1755420828793,54.88034258,193.7,193.67,15.515503]
[1755420828994,60.04301083,193.7,193.69,5.23068802]
[1755420829409,60.04301083,193.7,193.67,15.515503]
[1755420829639,5.8829672,193.69,193.6,0.7]
[1755420829798,0.72,193.68,193.65,5.23068802]
[1755420830131,0.72,193.67,193.66,5.23068802]
[1755420830828,5.8829672,193.69,193.66,5.23068802]
[1755420831002,0.72,193.68,193.67,5.23068802]
[1755420831530,0.72,193.68,193.64,15.51791]
[1755420831732,5.95068802,193.68,193.62,5.23068802]
[1755420831930,0.72,193.67,193.58,0.7]
[1755420832226,43.08,193.66,193.63,5.23068802]
[1755420832613,0.72,193.65,193.63,5.23068802]
[1755420832926,0.72,193.64,193.63,5.23068802]
[1755420833330,0.72,193.64,193.61,15.519516]
[1755420833530,0.72,193.64,193.63,5.23068802]
[1755420834055,43.08,193.66,193.63,5.23068802]
[1755420834230,0.72,193.65,193.63,5.23068802]
[1755420834600,43.08,193.66,193.62,0.03]
[1755420834923,0.72,193.64,193.62,0.03]
[1755420835121,0.72,193.64,193.62,5.26068802]
[1755420835325,0.72,193.63,193.62,5.26068802]
[1755420835742,0.72,193.63,193.62,0.03]
[1755420835900,5.88448897,193.63,193.62,0.03]
[1755420838431,11.11517699,193.63,193.62,0.03]
[1755420838631,26.22139256,193.63,193.62,0.03]
[1755420838834,20.99070454,193.63,193.62,0.03]
[1755420840440,42.55870676,193.63,193.58,0.03]
[1755420840741,5.23068802,193.59,193.49,5.23068802]
[1755420840970,5.23068802,193.54,193.45,0.7]
[1755420841243,43.52,193.53,193.49,5.23068802]
[1755420841425,43.52,193.52,193.45,0.7]
[1755420841745,43.52,193.52,193.42,15.560764]
[1755420841746,42.8,193.51,193.42,0.03]
[1755420841925,43.52,193.51,193.46,5.23068802]
[1755420842118,43.52,193.51,193.43,26.0]
[1755420842119,0.72,193.5,193.43,26.0]
[1755420842452,5.16822574,193.49,193.46,5.23068802]
[1755420842629,5.88822574,193.49,193.46,5.23068802]
[1755420842824,5.88822574,193.49,193.42,0.73]
[1755420843032,5.88822574,193.49,193.46,5.23068802]
[1755420843530,5.88822574,193.49,193.47,5.23068802]
[1755420843847,5.88822574,193.49,193.46,5.23068802]
[1755420844547,0.72,193.48,193.42,0.03]
[1755420844741,42.66,193.47,193.42,5.26068802]
[1755420845051,0.72,193.46,193.42,5.26068802]
[1755420845257,0.72,193.45,193.42,5.26068802]
[1755420845545,0.72,193.44,193.42,0.03]
[1755420845756,42.64,193.43,193.42,0.03]
[1755420846520,42.64,193.43,193.42,5.26068802]
[1755420846722,42.64,193.45,193.42,5.96068802]
[1755420847030,42.64,193.45,193.44,5.23068802]
[1755420847820,47.80929439,193.45,193.44,5.23068802]
[1755420848332,42.64,193.45,193.44,5.23068802]
[1755420848647,47.80934354,193.45,193.42,0.73]
[1755420849079,47.80934354,193.45,193.44,5.23068802]
[1755420849252,48.52934354,193.45,193.42,0.03]
[1755420849726,47.80934354,193.45,193.42,0.03]
[1755420850332,47.80934354,193.45,193.44,5.23068802]
[1755420850631,47.80934354,193.45,193.42,0.03]
[1755420850845,48.52934354,193.45,193.43,5.23068802]
[1755420851138,47.80934354,193.45,193.42,0.03]
[1755420851344,47.80934354,193.45,193.44,5.23068802]
[1755420851754,47.74904526,193.46,193.44,5.23068802]
[1755420852058,47.74904526,193.46,193.45,5.23068802]
[1755420852353,47.74904526,193.46,193.42,0.03]
[1755420852354,47.74904526,193.46,193.44,5.23068802]
[1755420852528,47.74904526,193.46,193.42,0.03]
[1755420852729,47.74904526,193.46,193.42,0.73]
[1755420852928,48.46904526,193.46,193.43,5.23068802]
[1755420853261,48.46904526,193.46,193.44,5.23068802]
[1755420853759,5.16956162,193.44,193.42,0.03]
[1755420853928,42.54,193.43,193.42,0.03]
[1755420854133,43.26,193.43,193.42,0.03]
[1755420855854,53.66051689,193.43,193.42,1e-08]
[1755420856029,51.8670523,193.43,193.42,1e-08]
[1755420856577,51.8070523,193.43,193.42,1e-08]
[1755420857043,57.03774032,193.43,193.42,1e-08]
[1755420857853,51.8070523,193.43,193.42,1e-08]
[1755420859555,48.36982887,193.43,193.42,1e-08]
[1755420860266,51.74060976,193.43,193.42,1e-08]
[1755420860442,5.16982887,193.43,193.42,1e-08]
[1755420860650,5.16982887,193.43,193.42,3.3707809]
[1755420860865,42.3,193.43,193.42,4.0607809]
[1755420861570,42.3,193.43,193.42,3.3707809]
[1755420861753,42.3,193.43,193.42,4.0607809]
[1755420861954,42.28,193.45,193.42,4.0607809]
[1755420862170,42.28,193.45,193.44,3.37078089]
[1755420862336,42.22,193.46,193.44,4.06078089]
[1755420862533,42.2,193.46,193.45,3.37078089]
[1755420862738,42.2,193.46,193.45,5.92844317]
[1755420863137,0.7,193.51,193.45,5.92844317]
[1755420863357,42.2,193.5,193.49,5.23844317]
[1755420863666,47.36795865,193.5,193.49,5.23844317]
[1755420863973,42.2,193.5,193.49,5.92844317]
[1755420864565,5.16745243,193.52,193.49,5.92844317]
[1755420864768,33.26002677,193.57,193.51,5.23844317]
[1755420864769,8.5944032,193.56,193.51,5.23844317]
[1755420864958,42.12,193.55,193.53,5.23844317]
[1755420865152,42.12,193.55,193.54,5.23844317]
[1755420865349,5.16609816,193.57,193.54,5.23844317]
[1755420865550,5.16582567,193.58,193.56,5.23844317]
[1755420865855,47.24582567,193.58,193.57,5.23844317]
[1755420866165,47.24582567,193.58,193.56,5.23844317]
[1755420866381,47.30555408,193.6,193.57,5.23844317]
[1755420866675,47.30555408,193.6,193.59,5.23844317]
[1755420866840,0.06,193.6,193.59,5.92844317]
[1755420868251,0.06,193.6,193.59,0.69]
[1755420868445,0.06,193.6,193.59,5.92844317]
[1755420872874,0.06,193.6,193.59,11.09399924]
[1755420873581,0.06,193.62,193.61,31.23844317]
[1755420874101,0.06,193.64,193.61,37.16688634]
[1755420874291,0.06,193.66,193.65,26.0]
[1755420874583,0.06,193.66,193.65,31.23844317]
[1755420874778,0.06,193.66,193.65,31.92844317]
[1755420875280,0.06,193.66,193.65,0.69]
[1755420875478,0.06,193.66,193.65,5.92844317]
[1755420875881,0.06,193.66,193.65,0.69]
[1755420876185,0.06,193.66,193.65,11.85688717]
[1755420878379,0.06,193.66,193.65,43.02084275]
[1755420879361,0.06,193.66,193.65,37.85688717]
[1755420882670,0.06,193.66,193.65,35.97755618]
[1755420883184,0.06,193.66,193.65,29.35911218]
[1755420884074,0.06,193.66,193.65,30.04911218]
[1755420884370,0.06,193.66,193.65,29.35911218]
[1755420884566,0.06,193.66,193.65,30.02911218]
[1755420885187,54.22034258,193.7,193.65,30.02911218]
[1755420885369,54.22034258,193.7,193.65,26.0]
[1755420885699,0.72,193.69,193.65,26.0]
[1755420886069,0.72,193.69,193.68,3.35911218]
[1755420886485,54.22034258,193.7,193.68,3.35911218]
[1755420886674,54.22034258,193.7,193.69,3.35911218]
[1755420886881,54.94034258,193.7,193.69,3.35911218]
[1755420887295,54.22034258,193.7,193.69,3.35911218]
[1755420887491,54.94034258,193.7,193.69,3.35911218]
[1755420887988,54.22034258,193.7,193.69,3.35911218]
[1755420888390,54.22034258,193.7,193.66,0.67]
[1755420888592,54.22034258,193.7,193.69,3.35911218]
[1755420888968,54.94034258,193.7,193.69,3.35911218]
[1755420889692,54.22034258,193.7,193.67,0.67]
[1755420889995,54.22034258,193.7,193.69,3.35911218]
[1755420890367,54.22034258,193.7,193.69,4.02911218]
[1755420891697,54.22034258,193.7,193.69,9.19200133]
[1755420891875,0.06,193.72,193.69,9.19200133]
[1755420892070,0.06,193.72,193.71,3.35911218]
[1755420892298,0.06,193.72,193.71,29.35911218]
[1755420892595,0.06,193.72,193.71,30.02911218]
[1755420893098,0.78,193.72,193.71,3.35911218]
[1755420893275,0.06,193.72,193.71,3.35911218]
[1755420893471,0.06,193.72,193.71,30.02911218]
[1755420895198,0.06,193.72,193.71,29.35911218]
[1755420896193,0.06,193.72,193.71,26.0]
[1755420896394,0.06,193.72,193.71,29.35911218]
[1755420896989,0.06,193.72,193.71,26.0]
[1755420897198,0.06,193.72,193.71,29.35911218]
[1755420898210,0.06,193.72,193.71,30.02911218]
[1755420898500,0.06,193.72,193.71,29.35911218]
[1755420898990,0.78,193.72,193.71,26.0]
[1755420899299,0.06,193.72,193.71,29.35911218]
[1755420900188,0.78,193.72,193.69,2.067985]
[1755420900387,0.78,193.72,193.64,41.32]
[1755420900574,0.78,193.72,193.69,3.35911218]
[1755420900776,0.78,193.72,193.67,26.0]
[1755420900777,0.06,193.72,193.71,3.35911218]
[1755420901205,0.06,193.72,193.68,26.67]
[1755420901403,0.06,193.72,193.71,3.35911218]
[1755420901783,0.06,193.72,193.69,5.161538]
[1755420901993,0.72,193.71,193.69,5.161538]
[1755420902192,0.72,193.71,193.68,3.35911218]
[1755420902507,0.72,193.71,193.69,3.35911218]
[1755420902686,0.72,193.7,193.69,3.35911218]
[1755420902884,0.72,193.7,193.66,0.03]
[1755420903090,0.72,193.7,193.66,26.03]
[1755420903311,0.72,193.7,193.66,29.38911218]
[1755420903531,8.52200133,193.69,193.66,0.03]
[1755420903823,3.42555681,193.68,193.66,0.03]
[1755420904033,4.14555681,193.68,193.66,0.03]
[1755420904324,5.16288915,193.69,193.66,0.03]
[1755420904325,7.50466899,193.67,193.66,0.03]
[1755420904532,15.10621557,193.66,193.64,0.03]
[1755420904832,3.35911218,193.63,193.55,3.35911218]
[1755420904984,18.53177238,193.63,193.62,1e-08]
[1755420905193,4.14555681,193.63,193.62,1e-08]
[1755420905428,15.10621557,193.61,193.52,6.297619]
[1755420905719,3.35911218,193.55,193.48,15.527549]
[1755420905929,7.96858824,193.6,193.48,15.527549]
[1755420905930,4.14555681,193.54,193.48,18.88666118]
[1755420906095,4.16293476,193.53,193.48,15.527549]
[1755420906294,4.16654718,193.52,193.43,2.69517955]
[1755420906508,4.16654718,193.51,193.44,15.52996]
[1755420906715,3.44654718,193.5,193.44,15.52996]
[1755420906894,3.44683302,193.49,193.48,5.23821296]
[1755420907418,4.16838771,193.49,193.44,15.52996]
[1755420907598,0.72,193.49,193.48,5.23821296]
[1755420907798,9.33675575,193.49,193.44,41.52996]
[1755420908104,0.72,193.52,193.48,5.23821296]
[1755420908310,4.16821694,193.51,193.49,5.23821296]
[1755420908621,4.16821694,193.5,193.48,5.23821296]
[1755420908823,3.44821694,193.49,193.48,5.23821296]
[1755420909494,3.44821694,193.49,193.45,0.67]
[1755420909827,5.88801329,193.5,193.48,5.23821296]
[1755420910006,3.44974458,193.49,193.48,5.23821296]
[1755420910325,3.44922212,193.49,193.48,5.23821296]
[1755420911406,5.88767875,193.52,193.45,0.67]
[1755420911606,3.44797946,193.51,193.49,5.23821296]
[1755420911816,3.44797946,193.5,193.45,0.67]
[1755420912026,0.72,193.51,193.49,5.23821296]
[1755420912210,0.72,193.51,193.45,0.67]
[1755420912530,0.72,193.51,193.49,5.23821296]
[1755420912897,3.44608332,193.5,193.45,0.67]
[1755420913120,0.72,193.51,193.49,5.23821296]
[1755420913315,4.16442556,193.54,193.5,5.23821296]
[1755420913604,3.44442556,193.53,193.5,0.67]
[1755420913915,0.72,193.54,193.5,0.67]
[1755420914219,0.72,193.54,193.48,0.67]
[1755420914427,41.32,193.57,193.47,26.0]
[1755420914428,3.44278172,193.56,193.49,26.67]
[1755420914613,8.60919828,193.56,193.49,26.67]
[1755420914820,8.60919828,193.56,193.54,5.23821296]
[1755420915006,4.15219812,193.55,193.49,0.67]
[1755420915200,4.15219812,193.55,193.54,5.23821296]
[1755420915530,5.87662361,193.55,193.54,5.23821296]
[1755420915724,5.87662361,193.55,193.49,0.67]
[1755420916028,0.71,193.54,193.51,5.23821296]
[1755420916326,4.15219812,193.54,193.48,5.23821296]
[1755420916530,0.71,193.53,193.5,5.23821296]
[1755420916707,5.16662361,193.55,193.52,5.23821296]
[1755420917038,5.16637154,193.56,193.52,0.66]
[1755420917548,0.71,193.56,193.52,0.66]
[1755420917838,3.43943209,193.59,193.52,0.66]
[1755420917839,0.71,193.58,193.52,0.66]
[1755420918009,5.87527165,193.61,193.57,5.23821296]
[1755420918218,0.71,193.6,193.59,5.23821296]
[1755420918441,0.71,193.6,193.53,26.66]
[1755420918804,0.71,193.6,193.58,5.23821296]
[1755420919025,5.8754807,193.6,193.53,26.66]
[1755420919202,5.8754807,193.6,193.58,5.23821296]
[1755420919403,0.71,193.59,193.58,5.23821296]
[1755420919928,0.71,193.59,193.57,5.23821296]
[1755420920323,0.71,193.58,193.53,0.66]
[1755420920907,0.71,193.58,193.57,5.23821296]
[1755420921108,5.87582291,193.58,193.57,5.23821296]
[1755420921843,5.87582291,193.58,193.56,5.23821296]
[1755420922040,5.87582291,193.58,193.57,5.23821296]
[1755420922342,5.87582291,193.58,193.51,26.0]
[1755420922555,5.87582291,193.58,193.55,5.23821296]
[1755420922722,0.71,193.57,193.55,5.23821296]
[1755420922922,0.71,193.57,193.51,26.66]
[1755420923120,5.16635668,193.56,193.55,5.23821296]
[1755420923332,5.16635668,193.56,193.51,26.66]
[1755420923539,5.87635668,193.56,193.54,5.23821296]
[1755420924046,5.87635668,193.56,193.55,5.23821296]
[1755420924342,5.87635668,193.56,193.51,0.66]
[1755420924343,5.16635668,193.56,193.51,0.66]
[1755420924532,5.16635668,193.56,193.52,0.66]
[1755420924737,5.87606423,193.58,193.55,5.23821296]
[1755420924905,5.87502246,193.61,193.57,5.23821296]
[1755420925108,0.71,193.6,193.58,5.23821296]
[1755420925310,5.16555607,193.59,193.58,5.23821296]
[1755420925813,5.87555607,193.59,193.55,5.23821296]
[1755420926049,0.71,193.58,193.55,5.23821296]
[1755420926217,0.71,193.58,193.56,5.23821296]
[1755420926539,0.71,193.58,193.52,0.66]
[1755420926740,0.71,193.58,193.55,5.23821296]
[1755420926918,0.71,193.58,193.57,5.23821296]
[1755420927232,5.87595163,193.58,193.53,0.66]
[1755420927415,5.87595163,193.58,193.56,5.23821296]
[1755420927622,5.16595163,193.58,193.57,5.23821296]
[1755420928618,5.16595163,193.58,193.57,3.36412015]
[1755420929218,0.71,193.6,193.57,3.36412015]
[1755420929219,5.87553323,193.6,193.57,3.36412015]
[1755420929434,5.87553323,193.6,193.58,3.36412015]
[1755420929636,5.87553323,193.6,193.59,3.36412015]
[1755420930437,5.87553323,193.6,193.58,3.36412015]
[1755420930944,5.87553323,193.6,193.55,0.66]
[1755420931126,0.71,193.65,193.59,3.36412015]
[1755420931308,41.53,193.65,193.61,3.36412015]
[1755420931514,40.82,193.65,193.61,3.36412015]
[1755420931749,40.82,193.65,193.61,4.02412015]
[1755420931963,41.53,193.65,193.61,4.02412015]
[1755420932123,41.53,193.65,193.62,3.36412015]
[1755420932124,5.87395558,193.65,193.62,3.36412015]
[1755420932446,0.71,193.64,193.6,3.36412015]
[1755420932610,0.71,193.63,193.55,26.0]
[1755420932814,40.82,193.62,193.52,12.912793]
[1755420933043,0.71,193.64,193.61,3.36412015]
[1755420933311,0.71,193.63,193.61,3.36412015]
[1755420933724,0.71,193.63,193.58,0.66]
[1755420934160,5.1647557,193.62,193.6,3.36412015]
[1755420934718,5.1647557,193.62,193.61,3.36412015]
[1755420935063,5.1647557,193.62,193.58,0.66]
[1755420935221,5.1647557,193.62,193.61,3.36412015]
[1755420935635,147.66810209,193.68,193.61,4.02412015]
[1755420935968,189.11810209,193.68,193.64,3.36412015]
[1755420936164,5.87342231,193.67,193.63,3.36412015]
[1755420936354,0.71,193.66,193.63,3.36412015]
[1755420936745,5.87342231,193.67,193.63,3.36412015]
[1755420937465,5.87342231,193.67,193.63,4.02412015]
[1755420937952,5.87342231,193.67,193.61,0.66]
[1755420938467,5.87342231,193.67,193.64,3.36412015]
[1755420938833,5.87342231,193.67,193.63,3.36412015]
[1755420940346,5.87342231,193.67,193.63,4.02412015]
[1755420940532,8.61073851,193.67,193.63,3.36412015]
[1755420940730,5.22319392,193.68,193.64,0.66]
[1755420940939,0.06,193.68,193.67,3.36412015]
[1755420941140,0.06,193.68,193.67,4.02412015]
[1755420941340,0.06,193.68,193.67,0.66]
[1755420941560,0.06,193.68,193.67,3.36412015]
[1755420941746,0.06,193.68,193.65,0.66]
[1755420942064,0.06,193.68,193.66,3.36412015]
[1755420942256,0.06,193.68,193.67,0.66]
[1755420942657,0.06,193.68,193.65,0.66]
[1755420943077,0.71,193.67,193.61,26.66]
[1755420943281,4.07412015,193.67,193.62,3.36412015]
[1755420943451,0.06,193.68,193.65,3.36412015]
[1755420943656,0.06,193.68,193.63,0.66]
[1755420943865,0.06,193.68,193.67,3.36412015]
[1755420944061,0.06,193.68,193.64,0.66]
[1755420944274,0.06,193.68,193.65,3.36412015]
[1755420944877,0.06,193.68,193.58,15.520319]
[1755420944878,41.73,193.67,193.58,0.68]
[1755420945062,0.65,193.66,193.58,0.68]
[1755420945260,4.10521132,193.66,193.61,3.36412015]
[1755420945582,3.45521132,193.66,193.62,4.04412015]
[1755420945793,0.71,193.68,193.64,3.36412015]
[1755420946000,3.51484223,193.68,193.65,4.04412015]
[1755420946166,3.51484223,193.68,193.65,0.68]
[1755420946481,3.51484223,193.68,193.65,4.04412015]
[1755420946699,3.45484223,193.67,193.59,26.0]
[1755420946985,4.10484223,193.66,193.61,3.36412015]
[1755420947187,3.45484223,193.67,193.64,3.36412015]